bitfinex/quotes_BTCUSD_20260315
["timestamp","ask_amount","ask_price","bid_price","bid_amount"]
[1773551304334,0.02990274,71486.0,71464.0,0.06996461]
[1773551304538,0.05868876,71480.0,71464.0,0.06996461]
[1773551304753,0.03130274,71479.0,71465.0,0.0014]
[1773551305314,0.03130274,71479.0,71464.0,0.06996461]
[1773551305315,0.03130274,71479.0,71466.0,0.0014]
[1773551306339,0.06995159,71478.0,71467.0,0.06996236]
[1773551312678,0.06994896,71481.0,71467.0,0.07016236]
[1773551313759,0.0998517,71481.0,71467.0,0.07016236]
[1773551314095,0.02990274,71480.0,71467.0,0.07016236]
[1773551314894,0.06995061,71479.0,71467.0,0.07016236]
[1773551315056,0.09985335,71479.0,71467.0,0.07016236]
[1773551315258,0.02990274,71478.0,71462.0,8.5e-05]
[1773551315484,0.02990274,71478.0,71467.0,0.0014]
[1773551316062,0.06994567,71485.0,71469.0,0.02966242]
[1773551317199,0.06994376,71486.0,71471.0,0.02966242]
[1773551319545,0.07030873,71487.0,71472.0,0.06995746]
[1773551319846,1e-08,71487.0,71478.0,0.02966242]
[1773551320050,1e-08,71487.0,71480.0,0.02966242]
[1773551320215,0.00034969,71490.0,71480.0,0.02966242]
[1773551321226,0.00022001,71486.0,71480.0,0.02966242]
[1773551322534,0.00022001,71486.0,71481.0,0.06994865]
[1773551325278,0.00022001,71486.0,71482.0,0.0014]
[1773551328719,0.00022001,71486.0,71483.0,0.0699467]
[1773551333236,0.00022001,71486.0,71483.0,0.06979728]
[1773551334199,0.00022001,71486.0,71482.0,0.07134759]
[1773551334366,0.00022001,71486.0,71484.0,0.0014]
[1773551335038,0.00022001,71486.0,71484.0,0.0012506]
[1773551335364,0.00022001,71486.0,71483.0,0.0014]
[1773551336148,0.00022001,71486.0,71477.0,0.06995196]
[1773551336530,0.02759346,71485.0,71478.0,0.0014]
[1773551336734,0.07016444,71486.0,71478.0,0.0014]
[1773551337335,0.07016444,71486.0,71479.0,0.0014]
[1773551339651,0.07021948,71486.0,71479.0,0.0713506]
[1773551343085,0.07021948,71486.0,71479.0,0.0715506]
[1773551343308,0.09781294,71486.0,71479.0,0.0715506]
[1773551349452,0.02786851,71486.0,71479.0,0.0715506]
[1773551349822,0.00027505,71486.0,71479.0,0.0715506]
[1773551352255,0.00027505,71486.0,71479.0,0.07140116]
[1773551354248,0.06994093,71489.0,71479.0,0.07140116]
[1773551354441,0.07029148,71490.0,71479.0,0.07140116]
[1773551354616,0.07029148,71490.0,71479.0,0.10050389]
[1773551355560,0.07029148,71490.0,71479.0,0.07140116]
[1773551358081,0.07024032,71489.0,71479.0,0.07140116]
[1773551361368,0.07024032,71489.0,71479.0,0.07125174]
[1773551361576,0.00029893,71489.0,71479.0,0.07125174]
[1773551361780,0.00022001,71492.0,71480.0,0.02624589]
[1773551363069,0.07015811,71492.0,71480.0,0.02624589]
[1773551363657,0.07015811,71492.0,71481.0,0.06994865]
[1773551369793,0.07015811,71492.0,71482.0,0.02624589]
[1773551369794,0.00022001,71492.0,71482.0,0.02624589]
[1773551370587,0.07015798,71492.0,71482.0,0.02624589]
[1773551371514,0.07015798,71492.0,71481.0,0.06994865]
[1773551374062,0.07015798,71492.0,71481.0,0.06894865]
[1773551378396,0.00022001,71492.0,71481.0,0.06894865]
[1773551378562,0.00022001,71492.0,71482.0,0.02609647]
[1773551378761,0.00022001,71492.0,71481.0,0.06894865]
[1773551380317,0.00022001,71492.0,71481.0,0.06914865]
[1773551381122,0.00022001,71492.0,71482.0,0.02624589]
[1773551382020,0.00022001,71493.0,71482.0,0.02624589]
[1773551385567,0.00022001,71493.0,71483.0,0.0699467]
[1773551388329,0.06993789,71492.0,71482.0,0.0699467]
[1773551388492,0.02469913,71491.0,71481.0,0.0014]
[1773551388691,0.02469913,71491.0,71480.0,0.03826821]
[1773551388913,0.02469913,71491.0,71479.0,0.07154963]
[1773551389080,0.02469913,71491.0,71480.0,0.06994865]
[1773551394519,0.06993985,71490.0,71480.0,0.07014865]
[1773551395098,0.06993985,71490.0,71480.0,0.12882711]
[1773551395350,0.06993985,71490.0,71481.0,0.02236983]
[1773551395711,0.07015894,71491.0,71481.0,0.02236983]
[1773551397359,0.07015894,71491.0,71482.0,0.06994767]
[1773551398134,0.07015894,71491.0,71483.0,0.02236983]
[1773551400315,0.07015894,71491.0,71482.0,0.06994767]
[1773551402879,0.07015894,71491.0,71482.0,0.06979827]
[1773551403115,0.07015894,71491.0,71482.0,0.06975827]
[1773551403298,0.00018001,71491.0,71482.0,0.06975827]
[1773551411287,0.00018001,71491.0,71482.0,0.06995827]
[1773551413066,0.00018001,71491.0,71482.0,0.06980885]
[1773551416173,0.00018001,71491.0,71482.0,0.09217868]
[1773551421434,0.00018001,71491.0,71483.0,0.02236983]
[1773551422341,0.00018001,71491.0,71483.0,0.02136983]
[1773551423552,0.00018001,71491.0,71482.0,0.06994767]
[1773551424465,0.00035001,71494.0,71483.0,0.02105637]
[1773551424771,0.00022001,71499.0,71482.0,0.06994767]
[1773551424772,0.07015149,71499.0,71485.0,0.02105637]
[1773551424990,0.00022001,71499.0,71487.0,0.02105637]
[1773551425139,0.07015114,71499.0,71487.0,0.02090695]
[1773551425475,0.00022001,71499.0,71487.0,0.02090695]
[1773551425676,0.00022001,71499.0,71488.0,0.09099817]
[1773551426377,0.00012001,71497.0,71491.0,0.00022001]
[1773551426680,0.00012001,71497.0,71488.0,0.0699418]
[1773551426681,0.00012001,71497.0,71492.0,0.0014]
[1773551427745,0.00022001,71499.0,71493.0,0.06993691]
[1773551428344,0.06965013,71500.0,71493.0,0.06993691]
[1773551428654,0.00022001,71506.0,71493.0,0.06993691]
[1773551428853,0.07014621,71504.0,71494.0,0.02105637]
[1773551430396,0.07050383,71504.0,71495.0,0.06993496]
[1773551430561,0.07050383,71504.0,71495.0,0.06978554]
[1773551433668,0.03500383,71504.0,71495.0,0.06978554]
[1773551439574,0.00035762,71504.0,71495.0,0.06978554]
[1773551439921,0.00035762,71504.0,71495.0,0.06998554]
[1773551440338,0.00057763,71504.0,71495.0,0.06998554]
[1773551441670,0.00014441,71504.0,71495.0,0.0002]
[1773551441978,0.06992518,71505.0,71495.0,0.0002]
[1773551442270,0.06830281,71505.0,71495.0,0.00055762]
[1773551445243,0.06830281,71505.0,71496.0,0.06993398]
[1773551447020,0.06852282,71505.0,71496.0,0.06993398]
[1773551447183,0.00011001,71505.0,71496.0,0.06993398]
[1773551447382,0.06992518,71505.0,71496.0,0.06993398]
[1773551453809,0.06326468,71506.0,71496.0,0.06993398]
[1773551454600,0.06326468,71506.0,71496.0,0.07013398]
[1773551454999,0.06348469,71506.0,71496.0,0.07013398]
[1773551457635,0.06348469,71506.0,71496.0,0.06998458]
[1773551459671,0.06348469,71506.0,71480.0,0.05886545]
[1773551459672,0.0214175,71505.0,71480.0,0.05886545]
[1773551459966,0.0214175,71499.0,71479.0,0.07015035]
[1773551460166,0.0014,71498.0,71480.0,0.06994876]
[1773551460849,0.0014,71498.0,71481.0,0.0014]
[1773551461049,0.0014,71498.0,71479.0,0.06995061]
[1773551461472,0.00186579,71497.0,71480.0,0.0014]
[1773551461701,0.00186579,71495.0,71481.0,0.06994865]
[1773551462559,0.06993398,71496.0,71481.0,0.07014865]
[1773551462741,0.06993398,71496.0,71481.0,0.06999923]
[1773551463609,0.06993398,71496.0,71482.0,0.02248049]
[1773551463887,0.00013,71501.0,71483.0,0.09242719]
[1773551464283,0.001,71495.0,71484.0,0.02248049]
[1773551464511,0.00013,71501.0,71484.0,0.02248049]
[1773551464840,0.00013,71501.0,71484.0,0.02148049]
[1773551465973,0.00013,71501.0,71485.0,0.06994474]
[1773551466173,0.00013,71501.0,71486.0,0.0014]
[1773551468294,0.06993006,71500.0,71486.0,0.0014]
[1773551469546,0.00345152,71495.0,71476.0,0.00173]
[1773551469859,0.00345152,71495.0,71476.0,0.0014]
[1773551469860,0.00345152,71490.0,71476.0,0.0014]
[1773551470248,0.00205152,71488.0,71477.0,0.0014]
[1773551470663,0.00205152,71488.0,71474.0,0.0002]
[1773551470862,0.00205152,71488.0,71475.0,0.0014]
[1773551471063,0.06994083,71489.0,71475.0,0.0014]
[1773551471306,0.07006691,71495.0,71480.0,0.02268369]
[1773551471528,0.001,71488.0,71480.0,0.02268369]
[1773551471742,0.001,71488.0,71474.0,0.07015525]
[1773551471743,0.001,71488.0,71481.0,0.0014]
[1773551472018,0.07006691,71494.0,71482.0,0.02268369]
[1773551472222,0.00013,71494.0,71482.0,0.02268369]
[1773551473291,0.00013,71494.0,71484.0,0.02223766]
[1773551474730,0.07005909,71501.0,71484.0,0.02223766]
[1773551476194,0.00013,71501.0,71486.0,0.02223766]
[1773551476392,0.00022001,71498.0,71487.0,0.0014]
[1773551477201,0.00022001,71498.0,71483.0,0.0699467]
[1773551477202,0.00022001,71498.0,71488.0,0.0014]
[1773551479926,0.069933,71497.0,71488.0,0.09357931]
[1773551480527,0.00013,71501.0,71489.0,0.02223766]
[1773551480736,0.00035762,71505.0,71489.0,0.02223766]
[1773551480737,0.07028349,71505.0,71489.0,0.02223766]
[1773551481524,0.07028349,71505.0,71489.0,0.02208827]
[1773551481923,0.07028349,71505.0,71491.0,0.05047358]
[1773551482125,0.07028349,71505.0,71492.0,0.02174619]
[1773551482967,5.501e-05,71498.0,71492.0,0.02174619]
[1773551484039,5.501e-05,71498.0,71494.0,0.02174619]
[1773551484244,5.501e-05,71498.0,71493.0,0.06993691]
[1773551484245,5.501e-05,71498.0,71496.0,0.02174619]
[1773551485306,0.06964849,71505.0,71496.0,0.0215968]
[1773551485907,0.06964849,71505.0,71496.0,0.02144743]
[1773551486117,0.06964849,71505.0,71496.0,0.09108215]
[1773551487516,0.06964849,71505.0,71496.0,0.06993344]
[1773551490176,0.06964849,71505.0,71496.0,0.06978409]
[1773551490344,0.0698685,71505.0,71496.0,0.06978409]
[1773551493263,0.0698685,71505.0,71492.0,0.06993691]
[1773551493439,0.0698685,71505.0,71493.0,0.0014]
[1773551495345,0.0698685,71505.0,71494.0,0.06993593]
[1773551496077,0.07014519,71505.0,71495.0,0.02174619]
[1773551497539,0.07014519,71505.0,71496.0,0.06993398]
[1773551498017,0.07014519,71505.0,71496.0,0.06893398]
[1773551502389,0.07014519,71505.0,71494.0,0.06993593]
[1773551502615,0.07014519,71505.0,71494.0,0.09168212]
[1773551504500,0.07014519,71505.0,71495.0,0.04782344]
[1773551504501,0.00022001,71505.0,71495.0,0.04782344]
[1773551504661,0.00022001,71505.0,71496.0,0.06993398]
[1773551504844,0.0701452,71505.0,71496.0,0.06993398]
[1773551505369,0.06992344,71507.0,71497.0,0.02174619]
[1773551505576,0.06992344,71507.0,71497.0,0.02210381]
[1773551506566,0.07013834,71512.0,71499.0,0.02174619]
[1773551506982,0.07013834,71512.0,71500.0,0.0014]
[1773551509654,0.07013834,71512.0,71501.0,0.06992909]
[1773551510031,0.00022001,71507.0,71501.0,0.06992909]
[1773551511894,0.06991988,71511.0,71501.0,0.06992909]
[1773551512874,0.03767216,71511.0,71501.0,0.06992909]
[1773551513068,0.07012956,71521.0,71502.0,0.02210682]
[1773551513280,0.07012956,71521.0,71510.0,0.05865563]
[1773551513458,0.07012956,71521.0,71511.0,0.0014]
[1773551513866,0.07012956,71521.0,71512.0,0.06991833]
[1773551514247,0.07012956,71521.0,71512.0,8.82e-05]
[1773551519836,0.07012956,71521.0,71510.0,0.06991998]
[1773551520013,0.02119309,71520.0,71511.0,0.0014]
[1773551520903,0.06991116,71520.0,71511.0,0.0713192]
[1773551521442,0.06991116,71520.0,71512.0,0.0014]
[1773551521651,0.02119309,71519.0,71512.0,0.0014]
[1773551522354,0.02119309,71519.0,71504.0,0.06992559]
[1773551522355,0.02119309,71519.0,71497.0,0.07029044]
[1773551522552,0.02119309,71519.0,71502.0,0.0014]
[1773551522908,0.06991246,71518.0,71502.0,0.00136]
[1773551523167,0.02119309,71517.0,71503.0,0.0014]
[1773551525271,0.06991442,71516.0,71503.0,0.0014]
[1773551525476,0.02119309,71515.0,71503.0,0.0014]
[1773551528049,0.02119309,71510.0,71496.0,0.0014]
[1773551528247,0.02155071,71510.0,71497.0,0.0014]
[1773551528857,0.02155071,71510.0,71486.0,0.02719042]
[1773551529063,0.02155071,71510.0,71487.0,0.07134278]
[1773551529259,0.02255071,71510.0,71487.0,0.07134278]
[1773551529464,0.02155071,71510.0,71488.0,0.0014]
[1773551529664,0.02255071,71510.0,71488.0,0.0014]
[1773551530074,0.02119309,71508.0,71489.0,0.0014]
[1773551530479,0.02119309,71508.0,71487.0,0.06994278]
[1773551530689,0.02119309,71508.0,71490.0,0.0014]
[1773551531084,0.02119309,71508.0,71491.0,0.0014]
[1773551532009,0.02119309,71506.0,71491.0,0.0014]
[1773551532388,0.02119309,71506.0,71486.0,0.0014]
[1773551533369,0.0014,71505.0,71486.0,0.0014]
[1773551533616,0.02119309,71504.0,71486.0,0.0014]
[1773551535896,0.06992713,71503.0,71482.0,0.07014735]
[1773551536092,0.02119309,71502.0,71483.0,0.0014]
[1773551540432,0.06992909,71501.0,71483.0,0.0016]
[1773551540634,0.02119309,71500.0,71483.0,0.0016]
[1773551542576,0.06993104,71499.0,71484.0,0.0014]
[1773551544274,0.09496699,71499.0,71484.0,0.0014]
[1773551545253,0.06993104,71499.0,71485.0,0.06994474]
[1773551545457,0.06993104,71499.0,71486.0,0.02388023]
[1773551547568,0.06993104,71502.0,71486.0,0.02388023]
[1773551548081,0.06993104,71502.0,71486.0,0.09382361]
[1773551550416,0.06993104,71502.0,71487.0,0.0014]
[1773551552487,0.09496699,71502.0,71487.0,0.0014]
[1773551553941,0.06993104,71502.0,71487.0,0.0014]
[1773551554112,0.09496699,71502.0,71487.0,0.0014]
[1773551555105,0.095187,71502.0,71487.0,0.0014]
[1773551556835,0.07015105,71502.0,71488.0,0.02388023]
[1773551557602,0.20965701,71502.0,71488.0,0.02388023]
[1773551560778,0.20965701,71502.0,71487.0,0.0014]
[1773551561994,0.20965701,71502.0,71487.0,0.07134274]
[1773551562298,0.13950596,71501.0,71487.0,0.07134274]
[1773551563163,0.13950596,71501.0,71488.0,0.02388023]
[1773551563363,0.06993006,71500.0,71489.0,0.02388023]
[1773551564980,0.04480625,71505.0,71492.0,0.02957403]
[1773551565148,0.04480625,71505.0,71493.0,0.02388023]
[1773551565500,0.06992425,71506.0,71495.0,0.02388023]
[1773551566113,0.04480483,71506.0,71495.0,0.02388023]
[1773551566315,0.01980869,71506.0,71495.0,0.02388023]
[1773551566901,0.06992518,71507.0,71495.0,0.02388023]
[1773551567469,0.06992518,71507.0,71495.0,0.0699349]
[1773551567672,0.06992518,71507.0,71496.0,0.02388023]
[1773551568679,0.06992518,71507.0,71495.0,0.0699349]
[1773551571934,0.07014519,71507.0,71495.0,0.0699349]
[1773551580877,0.07014519,71507.0,71495.0,0.0701349]
[1773551582234,0.07014519,71507.0,71496.0,0.02674998]
[1773551586951,0.00057763,71510.0,71497.0,0.12860702]
[1773551587152,0.07049801,71510.0,71498.0,0.02674998]
[1773551587845,0.07049801,71510.0,71497.0,0.069933]
[1773551588047,0.07049801,71510.0,71484.0,0.02694998]
[1773551588048,0.02580151,71509.0,71484.0,0.02694998]
[1773551588250,0.02580151,71509.0,71488.0,0.0014]
[1773551588668,0.02580151,71509.0,71489.0,0.0014]
[1773551588888,0.02580151,71507.0,71487.0,0.0002]
[1773551589086,0.02580151,71507.0,71488.0,0.0014]
[1773551589289,0.02602152,71507.0,71488.0,0.0014]
[1773551589466,0.02602152,71507.0,71487.0,0.07014272]
[1773551589648,0.02602152,71507.0,71489.0,0.0014]
[1773551590196,0.02602152,71507.0,71487.0,0.07014272]
[1773551590197,0.02602152,71507.0,71490.0,0.0014]
[1773551590551,0.02602152,71507.0,71491.0,0.0014]
[1773551591000,0.02580151,71505.0,71487.0,0.07014272]
[1773551591178,0.02580151,71505.0,71492.0,0.0014]
[1773551591982,0.02612651,71505.0,71492.0,0.0014]
[1773551592794,0.02712651,71505.0,71492.0,0.0014]
[1773551592971,0.06992615,71504.0,71487.0,0.07014272]
[1773551593175,0.02580151,71503.0,71492.0,0.0014]
[1773551593556,0.06992615,71504.0,71492.0,0.0014]
[1773551593758,0.06992615,71504.0,71493.0,0.02674998]
[1773551595610,0.06992615,71504.0,71495.0,0.02674998]
[1773551601150,0.000325,71505.0,71496.0,0.02674998]
[1773551601352,0.03445342,71505.0,71497.0,0.069933]
[1773551601531,0.03445342,71505.0,71498.0,0.0014]
[1773551602880,0.0699242,71506.0,71498.0,0.0014]
[1773551603156,0.0628224,71508.0,71499.0,0.0252859]
[1773551603521,0.0628224,71508.0,71500.0,0.06993006]
[1773551603715,0.0628224,71508.0,71499.0,0.09521685]
[1773551604258,0.00022001,71507.0,71499.0,0.09521685]
[1773551605250,0.0699242,71506.0,71499.0,0.06993095]
[1773551608887,0.0699242,71506.0,71500.0,0.0014]
[1773551609719,0.0699242,71506.0,71500.0,0.00125065]
[1773551611220,0.00022001,71506.0,71500.0,0.07118043]
[1773551614395,0.07014435,71506.0,71498.0,0.0014]
[1773551614634,0.02578186,71505.0,71498.0,0.0014]
[1773551615031,0.00022001,71506.0,71498.0,0.0014]
[1773551616437,0.00022001,71506.0,71499.0,0.06993104]
[1773551616887,8.763e-05,71510.0,71499.0,0.06993104]
[1773551617016,0.07000815,71510.0,71500.0,0.08393863]
[1773551618775,0.07000815,71510.0,71501.0,0.06992909]
[1773551619492,0.07000815,71510.0,71501.0,0.06892909]
[1773551620383,8.763e-05,71510.0,71501.0,0.06892909]
[1773551620874,0.06990332,71528.0,71502.0,0.0179258]
[1773551621066,0.02578186,71527.0,71510.0,0.05865273]
[1773551621283,0.02578186,71527.0,71511.0,0.0014]
[1773551621440,0.02578186,71527.0,71512.0,0.0014]
[1773551626467,0.06990465,71526.0,71513.0,0.06991735]
[1773551626673,0.09568651,71526.0,71513.0,0.06991735]
[1773551626887,0.02578186,71525.0,71513.0,0.06991735]
[1773551628597,0.0699066,71524.0,71513.0,0.06991735]
[1773551630537,0.09732165,71524.0,71513.0,0.06991735]
[1773551631610,0.0699066,71524.0,71513.0,0.06991735]
[1773551634044,0.09514423,71525.0,71513.0,0.06991735]
[1773551634834,0.0699066,71525.0,71513.0,0.06991735]
[1773551635008,0.09514423,71525.0,71513.0,0.06991735]
[1773551635208,0.00022001,71524.0,71513.0,0.06991735]
[1773551637537,0.06990758,71523.0,71513.0,0.06991735]
[1773551642038,0.06990758,71523.0,71513.0,0.07011735]
[1773551649110,0.06990758,71523.0,71514.0,0.0014]
[1773551658036,0.06990758,71523.0,71514.0,0.07131613]
[1773551660861,0.04860758,71523.0,71514.0,0.07131613]
[1773551661041,0.06272759,71524.0,71514.0,0.07131613]
[1773551661241,0.0699066,71524.0,71514.0,0.07131613]
[1773551661778,0.0694066,71524.0,71514.0,0.07131613]
[1773551661983,0.0690066,71524.0,71514.0,0.07131613]
[1773551662132,0.0548066,71524.0,71514.0,0.07131613]
[1773551662482,0.0415066,71524.0,71514.0,0.07131613]
[1773551662690,0.0201066,71524.0,71514.0,0.07131613]
[1773551663070,0.07012427,71527.0,71514.0,0.07131613]
[1773551664993,0.07012387,71527.0,71514.0,0.07131613]
[1773551668834,0.00022001,71527.0,71514.0,0.07131613]
[1773551669008,0.07012379,71527.0,71514.0,0.07131613]
[1773551669781,0.00022001,71527.0,71517.0,0.05861847]
[1773551669980,0.00022001,71527.0,71518.0,0.06991246]
[1773551673069,0.0001626,71531.0,71518.0,0.06991246]
[1773551673292,0.0001626,71531.0,71518.0,0.06997248]
[1773551673858,0.0700626,71531.0,71518.0,0.06997248]
[1773551676495,0.07011906,71532.0,71518.0,0.06997248]
[1773551676496,0.06971906,71532.0,71518.0,0.06997248]
[1773551676675,0.06989744,71534.0,71518.0,0.08894749]
[1773551678022,0.06909744,71534.0,71519.0,0.01893062]
[1773551678217,0.06909744,71534.0,71520.0,0.02033062]
[1773551678740,0.00022001,71531.0,71521.0,0.06990953]
[1773551679531,0.06931924,71532.0,71521.0,0.06990953]
[1773551680131,0.0698978,71533.0,71521.0,0.06990953]
[1773551681338,0.02801034,71532.0,71521.0,0.06990953]
[1773551681543,0.02801034,71532.0,71522.0,0.0014]
[1773551683082,0.02820664,71532.0,71522.0,0.0014]
[1773551683487,0.02801034,71530.0,71520.0,0.06990953]
[1773551683683,0.02801034,71530.0,71523.0,0.0014]
[1773551686110,0.06989976,71531.0,71524.0,0.0699066]
[1773551690279,0.0979101,71531.0,71524.0,0.0699066]
[1773551690752,0.09601139,71531.0,71524.0,0.0699066]
[1773551693031,0.09601139,71531.0,71520.0,0.06990953]
[1773551693236,0.09601139,71531.0,71521.0,0.0014]
[1773551693828,0.0962314,71531.0,71521.0,0.0014]
[1773551694972,0.07011977,71531.0,71521.0,0.0014]
[1773551695749,0.07011977,71531.0,71522.0,0.06990855]
[1773551698618,0.00022001,71531.0,71522.0,0.06990855]
[1773551698801,5.501e-05,71531.0,71522.0,0.09709854]
[1773551699691,5.501e-05,71531.0,71522.0,0.06990855]
[1773551700894,5.501e-05,71531.0,71522.0,0.07010855]
[1773551701312,0.00022001,71535.0,71522.0,0.07010855]
[1773551701513,0.00169003,71539.0,71529.0,0.05861847]
[1773551701705,0.00169003,71539.0,71530.0,0.0014]
[1773551703196,0.00169003,71539.0,71531.0,0.06989976]
[1773551709167,0.0637296,71542.0,71531.0,0.06989976]
[1773551712266,0.0637296,71542.0,71510.0,0.05881847]
[1773551712479,0.0637296,71542.0,71513.0,0.0016]
[1773551712480,0.02626534,71529.0,71513.0,0.0016]
[1773551712680,0.0277725,71529.0,71510.0,0.0002]
[1773551712891,0.0277725,71529.0,71514.0,0.0014]
[1773551714034,0.0287725,71529.0,71514.0,0.0014]
[1773551714231,0.02626534,71527.0,71514.0,0.0014]
[1773551715459,0.02626534,71527.0,71514.0,0.0016]
[1773551715908,0.06990269,71528.0,71515.0,0.0014]
[1773551716308,0.09616803,71528.0,71515.0,0.0014]
[1773551716531,0.001,71527.0,71515.0,0.0014]
[1773551716855,0.09616803,71528.0,71515.0,0.0014]
[1773551717044,0.07090269,71528.0,71515.0,0.0014]
[1773551717858,0.02626534,71527.0,71516.0,0.0014]
[1773551718012,0.02626534,71527.0,71517.0,0.0014]
[1773551718861,0.02886546,71519.0,71506.0,0.07012369]
[1773551719006,0.02626534,71518.0,71507.0,0.0016]
[1773551719416,0.02626534,71518.0,71508.0,0.0014]
[1773551719619,0.02626534,71518.0,71500.0,0.07012914]
[1773551720064,0.02626534,71518.0,71501.0,0.0014]
[1773551720431,0.02626534,71518.0,71502.0,0.0014]
[1773551720634,0.02726534,71518.0,71502.0,0.0014]
[1773551720834,0.06991344,71517.0,71502.0,0.0014]
[1773551721122,0.02626534,71516.0,71502.0,0.0014]
[1773551721982,0.06991344,71517.0,71502.0,0.0014]
[1773551722923,0.0001622,71526.0,71504.0,0.02841935]
[1773551723072,0.0001622,71526.0,71508.0,0.02841935]
[1773551723073,0.06990562,71525.0,71508.0,0.02841935]
[1773551723814,0.06990562,71525.0,71510.0,0.02841935]
[1773551725518,0.0001622,71526.0,71511.0,0.06991931]
[1773551725677,0.0001622,71526.0,71512.0,0.02841935]
[1773551727480,0.00034952,71525.0,71512.0,0.02841935]
[1773551728835,0.0699066,71524.0,71513.0,0.06991735]
[1773551729241,0.07025612,71525.0,71513.0,0.06991735]
[1773551729628,0.07025612,71525.0,71514.0,0.02841935]
[1773551729926,0.06989807,71533.0,71516.0,0.02841935]
[1773551730166,0.06989429,71537.0,71520.0,0.02841935]
[1773551730319,0.06989683,71534.0,71520.0,0.02841935]
[1773551730520,0.06989683,71534.0,71522.0,0.02841935]
[1773551730720,0.06989569,71536.0,71523.0,0.06990758]
[1773551730929,0.00022001,71539.0,71524.0,0.02841935]
[1773551731160,0.07011207,71539.0,71524.0,0.02841935]
[1773551731468,0.00022001,71539.0,71524.0,0.02841935]
[1773551731620,0.00012001,71539.0,71524.0,0.02841935]
[1773551732075,0.00022001,71536.0,71524.0,0.02841935]
[1773551732856,0.00022001,71536.0,71526.0,0.02841935]
[1773551733073,0.00022001,71536.0,71528.0,0.02841935]
[1773551733334,0.06922037,71541.0,71528.0,0.02841935]
[1773551734996,0.07045773,71543.0,71530.0,0.02841935]
[1773551735222,0.00056945,71543.0,71530.0,0.02841935]
[1773551736300,0.07045777,71543.0,71530.0,0.02841935]
[1773551736454,0.07045777,71543.0,71531.0,0.02841935]
[1773551737814,0.06325777,71543.0,71532.0,0.09831813]
[1773551738006,0.06325777,71543.0,71533.0,0.02981935]
[1773551739581,0.06874551,71546.0,71533.0,0.02981935]
[1773551739783,0.04744551,71546.0,71535.0,0.02841935]
[1773551740004,0.0414855,71546.0,71535.0,0.02841935]
[1773551740219,0.06988388,71548.0,71535.0,0.02841935]
[1773551741636,0.07003315,71549.0,71538.0,0.05862238]
[1773551741637,0.00015,71549.0,71538.0,0.05862238]
[1773551741839,0.00015,71549.0,71539.0,0.06989194]
[1773551742085,0.00015,71549.0,71540.0,0.0014]
[1773551743236,0.01072002,71555.0,71540.0,0.0014]
[1773551743445,0.07021994,71561.0,71540.0,0.0014]
[1773551743446,0.00012001,71558.0,71541.0,0.02841935]
[1773551743780,0.00012001,71558.0,71541.0,0.02852428]
[1773551743916,0.00012001,71558.0,71543.0,0.02841935]
[1773551745009,6.001e-05,71558.0,71543.0,0.02841935]
[1773551746159,6.001e-05,71558.0,71545.0,0.02841935]
[1773551746459,6.001e-05,71558.0,71546.0,0.02981935]
[1773551746964,5.501e-05,71555.0,71546.0,0.0014]
[1773551747166,0.02780685,71559.0,71547.0,0.0014]
[1773551747314,0.02780685,71559.0,71544.0,0.06988706]
[1773551747512,0.02780685,71559.0,71545.0,0.0014]
[1773551748165,0.06987338,71558.0,71547.0,0.06988413]
[1773551748409,0.02826683,71557.0,71547.0,0.06988413]
[1773551748590,0.02826683,71557.0,71548.0,0.0014]
[1773551748946,0.02826683,71557.0,71547.0,0.06888413]
[1773551749296,0.02826683,71557.0,71548.0,0.0014]
[1773551749443,0.02826683,71557.0,71547.0,0.06888413]
[1773551749653,0.02826683,71557.0,71545.0,0.0014]
[1773551749855,0.02826683,71557.0,71546.0,0.0014]
[1773551750228,0.02826683,71557.0,71541.0,0.03524719]
[1773551750229,0.06987534,71556.0,71547.0,0.0014]
[1773551750410,0.0295442,71555.0,71541.0,0.03664719]
[1773551750761,0.0295442,71555.0,71541.0,0.0014]
[1773551750966,0.0295442,71555.0,71540.0,0.06989063]
[1773551751161,0.02965134,71555.0,71541.0,0.0014]
[1773551751615,0.02965134,71555.0,71542.0,0.0014]
[1773551752122,0.02965134,71555.0,71543.0,0.0014]
[1773551752469,0.06987729,71554.0,71531.0,0.06989931]
[1773551752663,0.02961348,71553.0,71532.0,0.0014]
[1773551754523,0.06987924,71552.0,71533.0,0.0698978]
[1773551754775,0.02961348,71551.0,71533.0,0.0698978]
[1773551757236,0.0698812,71550.0,71533.0,0.0698978]
[1773551757439,0.0698812,71550.0,71534.0,0.03130706]
[1773551759890,0.06987924,71552.0,71535.0,0.06989585]
[1773551760383,0.09949272,71552.0,71535.0,0.06989585]
[1773551760586,0.06987924,71552.0,71535.0,0.06989585]
[1773551760788,0.06987924,71552.0,71536.0,0.03130706]
[1773551761506,0.06987924,71552.0,71541.0,0.03130706]
[1773551761664,0.06987924,71552.0,71542.0,0.0014]
[1773551762061,0.06987924,71554.0,71543.0,0.06988803]
[1773551763271,0.06987924,71554.0,71543.0,0.10119509]
[1773551765408,0.06277924,71554.0,71543.0,0.06988803]
[1773551765763,0.07016444,71555.0,71544.0,0.03130706]
[1773551766438,0.07016444,71555.0,71545.0,0.06988608]
[1773551767868,0.0072751,71560.0,71546.0,0.03130706]
[1773551768087,0.0771467,71560.0,71546.0,0.0314142]
[1773551768242,0.0771467,71560.0,71547.0,0.06988413]
[1773551768443,0.0771467,71560.0,71548.0,0.03130706]
[1773551768633,0.0771467,71560.0,71549.0,0.0014]
[1773551769279,0.0072751,71560.0,71550.0,0.03130706]
[1773551769625,0.06987031,71562.0,71550.0,0.03130706]
[1773551769834,0.07008901,71563.0,71550.0,0.03130706]
[1773551770036,0.06986998,71562.0,71550.0,0.03130706]
[1773551770241,0.07021996,71561.0,71550.0,0.03130706]
[1773551770475,0.07021996,71561.0,71552.0,0.05587222]
[1773551770476,0.00034935,71561.0,71552.0,0.05587222]
[1773551771306,0.00056936,71561.0,71552.0,0.05587222]
[1773551771472,0.00022001,71567.0,71552.0,0.05587222]
[1773551772778,0.00022001,71567.0,71554.0,0.05586938]
[1773551772959,0.00022001,71567.0,71556.0,0.05586938]
[1773551774489,0.05862238,71580.0,71556.0,0.05586938]
[1773551774694,0.28630311,71609.0,71571.0,0.11470478]
[1773551774695,0.06984703,71586.0,71571.0,0.11470478]
[1773551774907,0.06984703,71586.0,71572.0,0.0014]
[1773551775950,0.07020452,71586.0,71572.0,0.00134122]
[1773551776131,0.00035749,71586.0,71573.0,0.04484409]
[1773551776334,0.06984703,71587.0,71573.0,0.04484409]
[1773551776614,0.00010714,71587.0,71574.0,0.06985776]
[1773551776862,0.00010714,71587.0,71575.0,0.0486654]
[1773551778255,5.357e-05,71587.0,71575.0,0.0486654]
[1773551778855,0.0002413,71594.0,71578.0,0.0486776]
[1773551779058,0.0002413,71594.0,71580.0,0.0486776]
[1773551779479,0.07007978,71594.0,71580.0,0.0486776]
[1773551779637,0.07007978,71594.0,71579.0,0.0014]
[1773551780246,0.07007978,71594.0,71579.0,0.0500776]